[Event "Late-Titled-Tuesday-Blitz-June-04-2024"]
[Site "Chess.com"]
[Date "2024.06.04"]
[Round "10"]
[White "Kacparov"]
[Black "krzyzan94"]
[Result "1/2-1/2"]
[WhiteElo "2918"]
[BlackElo "2805"]
[TimeControl "180+1"]
[EndTime "15:56:38 PDT"]
[Termination "Game drawn by stalemate"]

1. e4 {[%clk 0:03:00.9]} 1... c6 {[%clk 0:02:59.2]} 2. d4 {[%clk 0:02:59.5]}
2... d5 {[%clk 0:02:59.7]} 3. e5 {[%clk 0:03:00]} 3... Bf5 {[%clk 0:02:57.5]} 4.
Nf3 {[%clk 0:03:00.6]} 4... e6 {[%clk 0:02:56.1]} 5. Be2 {[%clk 0:03:01.2]} 5...
Ne7 {[%clk 0:02:51.8]} 6. O-O {[%clk 0:03:01.8]} 6... Nd7 {[%clk 0:02:49]} 7.
Be3 {[%clk 0:03:02.3]} 7... Bg6 {[%clk 0:02:48.9]} 8. Nbd2 {[%clk 0:03:02.9]}
8... Nf5 {[%clk 0:02:48.1]} 9. c4 {[%clk 0:03:03.2]} 9... Be7 {[%clk 0:02:42.3]}
10. Rc1 {[%clk 0:03:02.7]} 10... O-O {[%clk 0:02:40.4]} 11. Nb3 {[%clk
0:02:53.7]} 11... Nxe3 {[%clk 0:02:37.2]} 12. fxe3 {[%clk 0:02:53.7]} 12... dxc4
{[%clk 0:02:31.7]} 13. Bxc4 {[%clk 0:02:53.5]} 13... Bg5 {[%clk 0:02:02.1]} 14.
Nxg5 {[%clk 0:02:46.2]} 14... Qxg5 {[%clk 0:02:01.7]} 15. Qf3 {[%clk 0:02:45.9]}
15... Rad8 {[%clk 0:01:57.3]} 16. Qf4 {[%clk 0:02:43.1]} 16... Qxf4 {[%clk
0:01:54.2]} 17. Rxf4 {[%clk 0:02:42.1]} 17... Nb6 {[%clk 0:01:54.2]} 18. Nc5
{[%clk 0:02:39.9]} 18... Nxc4 {[%clk 0:01:47.1]} 19. Rxc4 {[%clk 0:02:40.8]}
19... b6 {[%clk 0:01:48]} 20. Nb7 {[%clk 0:02:30.3]} 20... Rd7 {[%clk
0:01:33.1]} 21. Nd6 {[%clk 0:02:30]} 21... Rc7 {[%clk 0:01:32.5]} 22. b4 {[%clk
0:02:25]} 22... a6 {[%clk 0:01:26.9]} 23. Rc3 {[%clk 0:02:19.7]} 23... f6 {[%clk
0:01:24.3]} 24. Nc4 {[%clk 0:02:13.4]} 24... Rb7 {[%clk 0:01:17.4]} 25. a4
{[%clk 0:02:07.3]} 25... a5 {[%clk 0:01:08.1]} 26. bxa5 {[%clk 0:01:56.3]} 26...
bxa5 {[%clk 0:01:09]} 27. Nxa5 {[%clk 0:01:53.1]} 27... Rb1+ {[%clk 0:01:08.9]}
28. Kf2 {[%clk 0:01:52.4]} 28... Ra8 {[%clk 0:00:54.5]} 29. Nxc6 {[%clk
0:01:34.5]} 29... Rxa4 {[%clk 0:00:49.9]} 30. Ne7+ {[%clk 0:01:27.2]} 30... Kf7
{[%clk 0:00:47.2]} 31. Rc7 {[%clk 0:01:27.2]} 31... Ra2+ {[%clk 0:00:45.7]} 32.
Kg3 {[%clk 0:01:27.2]} 32... Rc2 {[%clk 0:00:22.5]} 33. Ra7 {[%clk 0:01:21.4]}
33... Rbb2 {[%clk 0:00:15.6]} 34. Nxg6+ {[%clk 0:01:12.6]} 34... Kxg6 {[%clk
0:00:14]} 35. Rg4+ {[%clk 0:01:13]} 35... Kh6 {[%clk 0:00:07.9]} 36. Kh3 {[%clk
0:01:10.9]} 36... fxe5 {[%clk 0:00:03.6]} 37. Raxg7 {[%clk 0:00:42.8]} 37... Re2
{[%clk 0:00:03.7]} 38. Rf7 {[%clk 0:00:32.9]} 38... exd4 {[%clk 0:00:03.1]} 39.
Kh4 {[%clk 0:00:19.3]} 39... Rf2 {[%clk 0:00:01.1]} 40. Rxf2 {[%clk 0:00:12.2]}
40... Rxf2 {[%clk 0:00:02]} 41. exd4 {[%clk 0:00:12.4]} 41... Rd2 {[%clk
0:00:01.4]} 42. h3 {[%clk 0:00:10.5]} 42... Rd3 {[%clk 0:00:01.5]} 43. g3 {[%clk
0:00:07.7]} 43... Rd2 {[%clk 0:00:01]} 44. Re4 {[%clk 0:00:08]} 44... Kg7 {[%clk
0:00:01.5]} 45. Kg5 {[%clk 0:00:07.9]} 45... Rd3 {[%clk 0:00:01.3]} 46. Kf4
{[%clk 0:00:05.4]} 46... Kf6 {[%clk 0:00:01.8]} 47. Kg4 {[%clk 0:00:05.1]} 47...
Rd1 {[%clk 0:00:02.4]} 48. Rf4+ {[%clk 0:00:05.6]} 48... Kg6 {[%clk 0:00:02.7]}
49. Re4 {[%clk 0:00:05.7]} 49... Kf6 {[%clk 0:00:03.3]} 50. h4 {[%clk
0:00:05.1]} 50... Rd3 {[%clk 0:00:03.3]} 51. Rf4+ {[%clk 0:00:04.8]} 51... Kg6
{[%clk 0:00:03.4]} 52. h5+ {[%clk 0:00:05.5]} 52... Kg7 {[%clk 0:00:03.8]} 53.
Kh4 {[%clk 0:00:05.5]} 53... h6 {[%clk 0:00:03.4]} 54. g4 {[%clk 0:00:06.1]}
54... Rd1 {[%clk 0:00:03.2]} 55. Kg3 {[%clk 0:00:06.7]} 55... Rd3+ {[%clk
0:00:02.8]} 56. Kf2 {[%clk 0:00:06.7]} 56... Ra3 {[%clk 0:00:02.7]} 57. Ke2
{[%clk 0:00:06.9]} 57... Rb3 {[%clk 0:00:02.9]} 58. Kd2 {[%clk 0:00:07.3]} 58...
Ra3 {[%clk 0:00:03.3]} 59. Ke2 {[%clk 0:00:07.3]} 59... Rb3 {[%clk 0:00:03.4]}
60. Rf3 {[%clk 0:00:07.6]} 60... Rb1 {[%clk 0:00:02.4]} 61. Ke3 {[%clk 0:00:08]}
61... Rd1 {[%clk 0:00:02.2]} 62. Ke4 {[%clk 0:00:07.9]} 62... Re1+ {[%clk
0:00:02.9]} 63. Re3 {[%clk 0:00:06.9]} 63... Rg1 {[%clk 0:00:02.5]} 64. Ke5
{[%clk 0:00:06.1]} 64... Kf7 {[%clk 0:00:02.5]} 65. Rf3+ {[%clk 0:00:06.1]}
65... Ke7 {[%clk 0:00:02.9]} 66. Rf4 {[%clk 0:00:06.5]} 66... Re1+ {[%clk
0:00:02.5]} 67. Re4 {[%clk 0:00:07.1]} 67... Rd1 {[%clk 0:00:02.8]} 68. Re3
{[%clk 0:00:05.5]} 68... Rd2 {[%clk 0:00:02.6]} 69. Ra3 {[%clk 0:00:04.7]} 69...
Re2+ {[%clk 0:00:02.5]} 70. Kf4 {[%clk 0:00:05.3]} 70... Kf6 {[%clk 0:00:02.8]}
71. Ra6 {[%clk 0:00:05.4]} 71... Rf2+ {[%clk 0:00:02.9]} 72. Ke3 {[%clk
0:00:05.8]} 72... Rg2 {[%clk 0:00:02.1]} 73. Kf3 {[%clk 0:00:06.4]} 73... Rd2
{[%clk 0:00:01.8]} 74. Ra4 {[%clk 0:00:06.9]} 74... Rd1 {[%clk 0:00:01.6]} 75.
Kf4 {[%clk 0:00:07]} 75... Rf1+ {[%clk 0:00:01.5]} 76. Kg3 {[%clk 0:00:07.7]}
76... Rd1 {[%clk 0:00:01.6]} 77. Kf2 {[%clk 0:00:08.2]} 77... Rd3 {[%clk
0:00:01.6]} 78. Rb4 {[%clk 0:00:07.6]} 78... Kg5 {[%clk 0:00:01.1]} 79. Rb6
{[%clk 0:00:08.1]} 79... Rxd4 {[%clk 0:00:01]} 80. Rxe6 {[%clk 0:00:08.5]} 80...
Rxg4 {[%clk 0:00:01.5]} 81. Rg6+ {[%clk 0:00:07.9]} 81... Kxh5 {[%clk
0:00:01.8]} 82. Rxg4 {[%clk 0:00:08.3]} 82... Kxg4 {[%clk 0:00:02.7]} 83. Kg2
{[%clk 0:00:08.8]} 83... h5 {[%clk 0:00:03.3]} 84. Kh2 {[%clk 0:00:09.5]} 84...
h4 {[%clk 0:00:03.8]} 85. Kh1 {[%clk 0:00:10.4]} 85... Kh3 {[%clk 0:00:03.6]}
86. Kg1 {[%clk 0:00:10.9]} 86... Kg3 {[%clk 0:00:04.4]} 87. Kh1 {[%clk
0:00:11.8]} 87... h3 {[%clk 0:00:05.2]} 88. Kg1 {[%clk 0:00:12.7]} 88... h2+
{[%clk 0:00:06.1]} 89. Kh1 {[%clk 0:00:13.6]} 89... Kh3 {[%clk 0:00:06.4]}
1/2-1/2

[Event "Late-Titled-Tuesday-Blitz-June-04-2024"]
[Site "Chess.com"]
[Date "2024.06.04"]
[Round "10"]
[White "BashiqChess"]
[Black "Nf3c5"]
[Result "1-0"]
[WhiteElo "2498"]
[BlackElo "2603"]
[TimeControl "180+1"]
[EndTime "15:58:03 PDT"]
[Termination "BashiqChess won on time"]

1. Nf3 {[%clk 0:02:57.6]} 1... d5 {[%clk 0:02:58.4]} 2. b3 {[%clk 0:02:44.9]}
2... Bf5 {[%clk 0:02:57.3]} 3. Bb2 {[%clk 0:02:33.4]} 3... e6 {[%clk 0:02:57]}
4. g3 {[%clk 0:02:27.7]} 4... h6 {[%clk 0:02:57.2]} 5. Bg2 {[%clk 0:02:26.2]}
5... Nf6 {[%clk 0:02:57.8]} 6. O-O {[%clk 0:02:26.5]} 6... Be7 {[%clk
0:02:56.5]} 7. d3 {[%clk 0:02:26.7]} 7... O-O {[%clk 0:02:56.9]} 8. Nbd2 {[%clk
0:02:26.7]} 8... a5 {[%clk 0:02:57.3]} 9. c4 {[%clk 0:02:21.5]} 9... a4 {[%clk
0:02:53.6]} 10. a3 {[%clk 0:02:10.9]} 10... axb3 {[%clk 0:02:51.4]} 11. Qxb3
{[%clk 0:02:10.7]} 11... Nbd7 {[%clk 0:02:38.8]} 12. Ne5 {[%clk 0:02:07.3]}
12... Nc5 {[%clk 0:02:35.7]} 13. Qc2 {[%clk 0:02:01.7]} 13... Na4 {[%clk
0:02:34.6]} 14. Rfb1 {[%clk 0:01:43.7]} 14... Nxb2 {[%clk 0:02:29.5]} 15. Qxb2
{[%clk 0:01:39.5]} 15... Ra7 {[%clk 0:02:26.1]} 16. a4 {[%clk 0:01:35.3]} 16...
Qa8 {[%clk 0:02:24.5]} 17. Qb3 {[%clk 0:01:16.5]} 17... c6 {[%clk 0:02:21.3]}
18. h3 {[%clk 0:01:12.7]} 18... Qd8 {[%clk 0:02:16.6]} 19. g4 {[%clk 0:01:12.7]}
19... Bh7 {[%clk 0:02:15.8]} 20. Ndf3 {[%clk 0:00:48.2]} 20... Bc5 {[%clk
0:02:06.7]} 21. Rb2 {[%clk 0:00:29.5]} 21... Qc7 {[%clk 0:01:59.1]} 22. d4
{[%clk 0:00:29.4]} 22... Bd6 {[%clk 0:01:55]} 23. c5 {[%clk 0:00:28]} 23... Be7
{[%clk 0:01:41.3]} 24. Nd2 {[%clk 0:00:23]} 24... Rfa8 {[%clk 0:01:37.3]} 25.
Bf3 {[%clk 0:00:15.1]} 25... Nd7 {[%clk 0:01:36.4]} 26. Nxd7 {[%clk 0:00:14.7]}
26... Qxd7 {[%clk 0:01:36.6]} 27. e3 {[%clk 0:00:15.2]} 27... e5 {[%clk
0:01:26.4]} 28. dxe5 {[%clk 0:00:11.1]} 28... Bxc5 {[%clk 0:01:23.3]} 29. Be2
{[%clk 0:00:11.2]} 29... Qe7 {[%clk 0:01:21.2]} 30. f4 {[%clk 0:00:08.9]} 30...
Qh4 {[%clk 0:01:19.4]} 31. Kg2 {[%clk 0:00:09]} 31... f6 {[%clk 0:00:45.6]} 32.
Bd3 {[%clk 0:00:08.9]} 32... Bxd3 {[%clk 0:00:39.8]} 33. Qxd3 {[%clk 0:00:09.8]}
33... fxe5 {[%clk 0:00:40.6]} 34. Nf3 {[%clk 0:00:08.9]} 34... e4 {[%clk
0:00:36.2]} 35. Qxd5+ {[%clk 0:00:03.6]} 35... cxd5 {[%clk 0:00:35.8]} 36. Nxh4
{[%clk 0:00:04.2]} 36... Bxe3 {[%clk 0:00:35.8]} 37. Rd1 {[%clk 0:00:02.1]}
37... d4 {[%clk 0:00:29.9]} 38. Nf5 {[%clk 0:00:02]} 38... Rxa4 {[%clk
0:00:30.5]} 39. Nxe3 {[%clk 0:00:01.6]} 39... dxe3 {[%clk 0:00:30.8]} 40. Rxb7
{[%clk 0:00:02.3]} 40... Ra2+ {[%clk 0:00:30.7]} 41. Kg3 {[%clk 0:00:02.7]}
41... e2 {[%clk 0:00:30.5]} 42. Re1 {[%clk 0:00:03.2]} 42... Rd8 {[%clk
0:00:30.4]} 43. Re7 {[%clk 0:00:02.8]} 43... Rd1 {[%clk 0:00:28.9]} 44. Kf2
{[%clk 0:00:02.7]} 44... Rd3 {[%clk 0:00:20.6]} 45. Rxe4 {[%clk 0:00:02.4]}
45... Rxh3 {[%clk 0:00:20.9]} 46. R1xe2 {[%clk 0:00:02.6]} 46... Rh2+ {[%clk
0:00:19.2]} 47. Kf3 {[%clk 0:00:02.8]} 47... Ra3+ {[%clk 0:00:16.1]} 48. R4e3
{[%clk 0:00:03.2]} 48... Rh3+ {[%clk 0:00:15.3]} 49. Kf2 {[%clk 0:00:03.7]}
49... Rh2+ {[%clk 0:00:15.4]} 50. Kg3 {[%clk 0:00:03.3]} 50... Rxe3+ {[%clk
0:00:08.6]} 51. Rxe3 {[%clk 0:00:03.3]} 51... Ra2 {[%clk 0:00:09.5]} 52. f5
{[%clk 0:00:03.6]} 52... Kf7 {[%clk 0:00:09.3]} 53. Kf4 {[%clk 0:00:03.9]} 53...
Ra4+ {[%clk 0:00:09.5]} 54. Kg3 {[%clk 0:00:03.4]} 54... Kf6 {[%clk 0:00:10.2]}
55. Re6+ {[%clk 0:00:03.6]} 55... Kf7 {[%clk 0:00:10.7]} 56. Rb6 {[%clk
0:00:04.3]} 56... Ra1 {[%clk 0:00:09.8]} 57. Rb7+ {[%clk 0:00:04.3]} 57... Kf6
{[%clk 0:00:10.3]} 58. Rb6+ {[%clk 0:00:04.9]} 58... Kf7 {[%clk 0:00:10.1]} 59.
Kf4 {[%clk 0:00:05.2]} 59... Ra4+ {[%clk 0:00:09]} 60. Kf3 {[%clk 0:00:05.6]}
60... Ra7 {[%clk 0:00:09.9]} 61. Kf4 {[%clk 0:00:05.8]} 61... Rd7 {[%clk
0:00:10]} 62. Re6 {[%clk 0:00:05.4]} 62... Ra7 {[%clk 0:00:09.7]} 63. Rb6 {[%clk
0:00:05.6]} 63... Ra4+ {[%clk 0:00:09.5]} 64. Kf3 {[%clk 0:00:06.1]} 64... Ra3+
{[%clk 0:00:08.8]} 65. Ke4 {[%clk 0:00:05.9]} 65... Ra8 {[%clk 0:00:08.4]} 66.
Ke5 {[%clk 0:00:06.1]} 66... Re8+ {[%clk 0:00:07.3]} 67. Kf4 {[%clk 0:00:06]}
67... Re1 {[%clk 0:00:08.2]} 68. Rb7+ {[%clk 0:00:06.3]} 68... Kg8 {[%clk
0:00:08.4]} 69. Kf3 {[%clk 0:00:06.1]} 69... Kh7 {[%clk 0:00:08.4]} 70. Kg3
{[%clk 0:00:06.2]} 70... Rf1 {[%clk 0:00:08.6]} 71. Kg2 {[%clk 0:00:06]} 71...
Rf4 {[%clk 0:00:08.6]} 72. Kg3 {[%clk 0:00:06.4]} 72... Rf1 {[%clk 0:00:08.4]}
73. Kh3 {[%clk 0:00:03.1]} 73... Kg8 {[%clk 0:00:07.7]} 74. Kh4 {[%clk
0:00:02.5]} 74... Rf3 {[%clk 0:00:05.3]} 75. Ra7 {[%clk 0:00:01.9]} 75... Kf8
{[%clk 0:00:05.3]} 76. Ra8+ {[%clk 0:00:02]} 76... Kf7 {[%clk 0:00:05.3]} 77.
Ra7+ {[%clk 0:00:02.7]} 77... Kf6 {[%clk 0:00:05.9]} 78. Ra6+ {[%clk 0:00:03]}
78... Ke5 {[%clk 0:00:05.6]} 79. Ra5+ {[%clk 0:00:01.8]} 79... Kf4 {[%clk
0:00:04]} 80. Ra4+ {[%clk 0:00:02.3]} 80... Ke5 {[%clk 0:00:04.5]} 81. Ra5+
{[%clk 0:00:02.8]} 81... Kf6 {[%clk 0:00:04.8]} 82. Ra6+ {[%clk 0:00:03.2]}
82... Kf7 {[%clk 0:00:05.4]} 83. Ra7+ {[%clk 0:00:03.8]} 83... Kg8 {[%clk
0:00:06.2]} 84. Ra8+ {[%clk 0:00:04.4]} 84... Kh7 {[%clk 0:00:06.4]} 85. Ra7
{[%clk 0:00:04.8]} 85... Rf1 {[%clk 0:00:04.8]} 86. Kg3 {[%clk 0:00:04.7]} 86...
Kg8 {[%clk 0:00:03.8]} 87. Ra8+ {[%clk 0:00:04.5]} 87... Kf7 {[%clk 0:00:04.2]}
88. Ra7+ {[%clk 0:00:04.7]} 88... Kf6 {[%clk 0:00:05.1]} 89. Ra6+ {[%clk
0:00:05.3]} 89... Kf7 {[%clk 0:00:03.1]} 90. Ra7+ {[%clk 0:00:05.8]} 90... Kf8
{[%clk 0:00:03.3]} 91. Ra8+ {[%clk 0:00:06]} 91... Kf7 {[%clk 0:00:02.2]} 92.
Ra4 {[%clk 0:00:06.6]} 92... Kg8 {[%clk 0:00:02.8]} 93. Kg2 {[%clk 0:00:06.9]}
93... Rc1 {[%clk 0:00:02.8]} 94. Ra8+ {[%clk 0:00:06.6]} 94... Kh7 {[%clk
0:00:03.3]} 95. Ra7 {[%clk 0:00:06.8]} 95... Rc2+ {[%clk 0:00:03.9]} 96. Kf3
{[%clk 0:00:07]} 96... Rc6 {[%clk 0:00:04.8]} 97. Kf4 {[%clk 0:00:07.2]} 97...
Rc4+ {[%clk 0:00:04.7]} 98. Kg3 {[%clk 0:00:07.5]} 98... Rc3+ {[%clk 0:00:04.9]}
99. Kh4 {[%clk 0:00:08]} 99... Rc6 {[%clk 0:00:05.7]} 100. g5 {[%clk 0:00:05.6]}
100... Rc4+ {[%clk 0:00:02.2]} 101. Kh5 {[%clk 0:00:05.5]} 101... hxg5 {[%clk
0:00:03.1]} 102. Kxg5 {[%clk 0:00:05.9]} 102... Rc6 {[%clk 0:00:04]} 103. Rb7
{[%clk 0:00:06.1]} 103... Rf6 {[%clk 0:00:04.6]} 104. Rb1 {[%clk 0:00:06.2]}
104... Rf8 {[%clk 0:00:05.2]} 105. Rh1+ {[%clk 0:00:06.2]} 105... Kg8 {[%clk
0:00:06.1]} 106. Ra1 {[%clk 0:00:06.4]} 106... Rf6 {[%clk 0:00:06.9]} 107. Ra7
{[%clk 0:00:06.8]} 107... Rf8 {[%clk 0:00:07.8]} 108. Ra6 {[%clk 0:00:07.5]}
108... Rf7 {[%clk 0:00:07.8]} 109. Kg6 {[%clk 0:00:07.3]} 109... Rf6+ {[%clk
0:00:07.6]} 110. Rxf6 {[%clk 0:00:07.1]} 110... gxf6 {[%clk 0:00:08.5]} 111.
Kxf6 {[%clk 0:00:07.8]} 111... Kf8 {[%clk 0:00:09.4]} 112. Kg6 {[%clk
0:00:08.3]} 112... Kg8 {[%clk 0:00:09.7]} 113. f6 {[%clk 0:00:08.1]} 113... Kf8
{[%clk 0:00:10.1]} 114. f7 {[%clk 0:00:08.4]} 114... Ke7 {[%clk 0:00:07.4]} 115.
Kg7 {[%clk 0:00:09.3]} 115... Ke6 {[%clk 0:00:07.3]} 116. f8=Q {[%clk
0:00:10.2]} 1-0

[Event "Late-Titled-Tuesday-Blitz-June-04-2024"]
[Site "Chess.com"]
[Date "2024.06.04"]
[Round "10"]
[White "IngOscarArdila"]
[Black "Defenstrator"]
[Result "1/2-1/2"]
[WhiteElo "2290"]
[BlackElo "2359"]
[TimeControl "180+1"]
[EndTime "15:58:15 PDT"]
[Termination "Game drawn - insufficient material"]

1. d4 {[%clk 0:02:59.7]} 1... a5 {[%clk 0:02:59.5]} 2. Nf3 {[%clk 0:02:59.5]}
2... a4 {[%clk 0:02:59.2]} 3. a3 {[%clk 0:02:58.4]} 3... Ra5 {[%clk 0:02:59.6]}
4. e4 {[%clk 0:02:58.5]} 4... Rh5 {[%clk 0:02:59.1]} 5. Be2 {[%clk 0:02:57.8]}
5... Ra5 {[%clk 0:02:56.2]} 6. Bd2 {[%clk 0:02:56.8]} 6... Ra8 {[%clk
0:02:56.3]} 7. Nc3 {[%clk 0:02:56.7]} 7... e6 {[%clk 0:02:56.6]} 8. O-O {[%clk
0:02:56.6]} 8... d5 {[%clk 0:02:57.2]} 9. exd5 {[%clk 0:02:53.6]} 9... exd5
{[%clk 0:02:57.6]} 10. Re1 {[%clk 0:02:53.8]} 10... Be7 {[%clk 0:02:56.8]} 11.
Ne5 {[%clk 0:02:52.2]} 11... Nf6 {[%clk 0:02:56.6]} 12. Bd3 {[%clk 0:02:49.4]}
12... O-O {[%clk 0:02:56.4]} 13. h3 {[%clk 0:02:48.1]} 13... c5 {[%clk
0:02:52.5]} 14. dxc5 {[%clk 0:02:40.8]} 14... Bxc5 {[%clk 0:02:52.8]} 15. Qf3
{[%clk 0:02:38.9]} 15... Nc6 {[%clk 0:02:47.6]} 16. Bg5 {[%clk 0:02:36.1]} 16...
Be6 {[%clk 0:02:40.1]} 17. Bxf6 {[%clk 0:02:30.8]} 17... Qxf6 {[%clk 0:02:39.1]}
18. Qxf6 {[%clk 0:02:30.6]} 18... gxf6 {[%clk 0:02:39.6]} 19. Ng4 {[%clk
0:02:19.9]} 19... Kg7 {[%clk 0:02:33.5]} 20. Nb5 {[%clk 0:02:16]} 20... Nd4
{[%clk 0:02:07.1]} 21. Nxd4 {[%clk 0:02:07]} 21... Bxd4 {[%clk 0:02:07.2]} 22.
c3 {[%clk 0:02:07.1]} 22... Bc5 {[%clk 0:02:04.1]} 23. Ne3 {[%clk 0:02:06.9]}
23... d4 {[%clk 0:02:01]} 24. Nd1 {[%clk 0:01:54.5]} 24... Rfd8 {[%clk
0:01:57.7]} 25. Be4 {[%clk 0:01:54.7]} 25... dxc3 {[%clk 0:01:49.1]} 26. Nxc3
{[%clk 0:01:53.6]} 26... Rd2 {[%clk 0:01:49.1]} 27. Re2 {[%clk 0:01:47.8]} 27...
Rxe2 {[%clk 0:01:47.7]} 28. Nxe2 {[%clk 0:01:48.7]} 28... Rd8 {[%clk 0:01:47.3]}
29. Rc1 {[%clk 0:01:43.9]} 29... b6 {[%clk 0:01:45.4]} 30. Kf1 {[%clk
0:01:41.4]} 30... Rd2 {[%clk 0:01:42.2]} 31. Nc3 {[%clk 0:01:14.5]} 31... Rxf2+
{[%clk 0:01:31]} 32. Ke1 {[%clk 0:01:14.1]} 32... Bb3 {[%clk 0:01:21.6]} 33. Nd1
{[%clk 0:01:07.2]} 33... Rf4 {[%clk 0:01:16.2]} 34. Bf3 {[%clk 0:01:03]} 34...
Rf5 {[%clk 0:01:05.9]} 35. Nf2 {[%clk 0:00:57.7]} 35... Bd5 {[%clk 0:01:02.3]}
36. Ke2 {[%clk 0:00:49.9]} 36... Bxf3+ {[%clk 0:00:54.8]} 37. gxf3 {[%clk
0:00:50.8]} 37... Re5+ {[%clk 0:00:53.1]} 38. Kf1 {[%clk 0:00:50.3]} 38... Re3
{[%clk 0:00:52.1]} 39. Rc3 {[%clk 0:00:34.9]} 39... Rxc3 {[%clk 0:00:52]} 40.
bxc3 {[%clk 0:00:35.8]} 40... Bxf2 {[%clk 0:00:51.1]} 41. Kxf2 {[%clk
0:00:35.2]} 41... Kg6 {[%clk 0:00:51.1]} 42. Ke3 {[%clk 0:00:34.9]} 42... Kf5
{[%clk 0:00:51.5]} 43. Kd4 {[%clk 0:00:34.1]} 43... Kf4 {[%clk 0:00:49.9]} 44.
Kd5 {[%clk 0:00:30.3]} 44... Kxf3 {[%clk 0:00:49.7]} 45. Kc6 {[%clk 0:00:31.2]}
45... Ke4 {[%clk 0:00:49.4]} 46. c4 {[%clk 0:00:31.6]} 46... f5 {[%clk
0:00:49.3]} 47. Kxb6 {[%clk 0:00:31.8]} 47... f4 {[%clk 0:00:48.6]} 48. c5
{[%clk 0:00:32]} 48... f3 {[%clk 0:00:49.2]} 49. c6 {[%clk 0:00:32.8]} 49... f2
{[%clk 0:00:49.9]} 50. c7 {[%clk 0:00:33.4]} 50... f1=Q {[%clk 0:00:50.6]} 51.
c8=Q {[%clk 0:00:33.8]} 51... Qf6+ {[%clk 0:00:39.9]} 52. Ka5 {[%clk 0:00:31.8]}
52... Qe7 {[%clk 0:00:08.2]} 53. Qc4+ {[%clk 0:00:27.2]} 53... Ke5 {[%clk
0:00:07.4]} 54. Kxa4 {[%clk 0:00:26.7]} 54... f5 {[%clk 0:00:06.4]} 55. Qc3+
{[%clk 0:00:22.5]} 55... Ke6 {[%clk 0:00:05.2]} 56. Kb5 {[%clk 0:00:22.5]} 56...
f4 {[%clk 0:00:03.6]} 57. Qc4+ {[%clk 0:00:19.4]} 57... Kf5 {[%clk 0:00:03.9]}
58. Qd3+ {[%clk 0:00:16.3]} 58... Qe4 {[%clk 0:00:03.2]} 59. Qd7+ {[%clk
0:00:15.4]} 59... Qe6 {[%clk 0:00:02.9]} 60. Qd3+ {[%clk 0:00:14.7]} 60... Kf6
{[%clk 0:00:02.3]} 61. a4 {[%clk 0:00:12.5]} 61... Qe3 {[%clk 0:00:01.5]} 62.
Qd8+ {[%clk 0:00:11.3]} 62... Kf5 {[%clk 0:00:02.2]} 63. a5 {[%clk 0:00:11.2]}
63... f3 {[%clk 0:00:01.9]} 64. Qf8+ {[%clk 0:00:10.4]} 64... Ke4 {[%clk
0:00:01.8]} 65. a6 {[%clk 0:00:10.4]} 65... f2 {[%clk 0:00:01.1]} 66. Qe7+
{[%clk 0:00:08.5]} 66... Kd3 {[%clk 0:00:01.7]} 67. Qd7+ {[%clk 0:00:07.1]}
67... Ke2 {[%clk 0:00:02.6]} 68. Qf7 {[%clk 0:00:04.5]} 68... f1=Q {[%clk
0:00:03.1]} 69. Qc4+ {[%clk 0:00:04.1]} 69... Kf3 {[%clk 0:00:03.9]} 70. Qxf1+
{[%clk 0:00:04.1]} 70... Ke4 {[%clk 0:00:04.6]} 71. Qc4+ {[%clk 0:00:03.9]}
71... Kf3 {[%clk 0:00:05.1]} 72. Qc6+ {[%clk 0:00:03.9]} 72... Kf4 {[%clk
0:00:05.6]} 73. Qc7+ {[%clk 0:00:03.9]} 73... Kf5 {[%clk 0:00:06.1]} 74. a7
{[%clk 0:00:04.8]} 74... Qb3+ {[%clk 0:00:05.8]} 75. Kc6 {[%clk 0:00:03.7]}
75... Qc4+ {[%clk 0:00:06.3]} 76. Kd7 {[%clk 0:00:03.7]} 76... Qd5+ {[%clk
0:00:06.1]} 77. Kc8 {[%clk 0:00:03.7]} 77... Qa8+ {[%clk 0:00:06.1]} 78. Qb8
{[%clk 0:00:03.8]} 78... Qc6+ {[%clk 0:00:06.7]} 79. Qc7 {[%clk 0:00:04.1]}
79... Qa8+ {[%clk 0:00:07.2]} 80. Kd7 {[%clk 0:00:04.5]} 80... Kf6 {[%clk
0:00:06.8]} 81. Qd6+ {[%clk 0:00:04.5]} 81... Kf7 {[%clk 0:00:07.1]} 82. Qe7+
{[%clk 0:00:04.7]} 82... Kg6 {[%clk 0:00:07.6]} 83. Qe6+ {[%clk 0:00:05]} 83...
Kg7 {[%clk 0:00:08]} 84. Qe5+ {[%clk 0:00:05]} 84... Kg6 {[%clk 0:00:08.4]} 85.
Qd6+ {[%clk 0:00:05.1]} 85... Kg7 {[%clk 0:00:08.6]} 86. Qd4+ {[%clk 0:00:05.1]}
86... Kf7 {[%clk 0:00:08.9]} 87. Qf2+ {[%clk 0:00:03.3]} 87... Kg7 {[%clk
0:00:09.3]} 88. Qg3+ {[%clk 0:00:03.6]} 88... Kf7 {[%clk 0:00:09.8]} 89. Qf4+
{[%clk 0:00:04.1]} 89... Kg7 {[%clk 0:00:10.4]} 90. Qg5+ {[%clk 0:00:04.3]}
90... Kf7 {[%clk 0:00:11]} 91. Qf5+ {[%clk 0:00:04.2]} 91... Kg7 {[%clk
0:00:11.5]} 92. Qe5+ {[%clk 0:00:04.5]} 92... Kf7 {[%clk 0:00:12.1]} 93. Qe6+
{[%clk 0:00:04.3]} 93... Kg7 {[%clk 0:00:12.6]} 94. Qe7+ {[%clk 0:00:04.2]}
94... Kg6 {[%clk 0:00:13]} 95. Qe8+ {[%clk 0:00:04.4]} 95... Qxe8+ {[%clk
0:00:12]} 96. Kxe8 {[%clk 0:00:05.3]} 96... h5 {[%clk 0:00:12.3]} 97. a8=Q
{[%clk 0:00:06]} 97... Kg5 {[%clk 0:00:13.2]} 98. Qd5+ {[%clk 0:00:06.5]} 98...
Kh4 {[%clk 0:00:14.1]} 99. Qe4+ {[%clk 0:00:06.5]} 99... Kxh3 {[%clk 0:00:14.5]}
100. Kf7 {[%clk 0:00:07.4]} 100... h4 {[%clk 0:00:14.9]} 101. Kg6 {[%clk
0:00:08.3]} 101... Kg3 {[%clk 0:00:15.6]} 102. Kg5 {[%clk 0:00:08.3]} 102... h3
{[%clk 0:00:16.4]} 103. Qe3+ {[%clk 0:00:08.8]} 103... Kg2 {[%clk 0:00:16.8]}
104. Kg4 {[%clk 0:00:09.2]} 104... h2 {[%clk 0:00:17.4]} 105. Qe2+ {[%clk
0:00:09.5]} 105... Kg1 {[%clk 0:00:14.9]} 106. Kf3 {[%clk 0:00:09.5]} 106...
h1=Q+ {[%clk 0:00:15.2]} 107. Ke3 {[%clk 0:00:09.3]} 107... Qh3+ {[%clk
0:00:14.9]} 108. Kd2 {[%clk 0:00:09.5]} 108... Kh1 {[%clk 0:00:08.8]} 109. Qe1+
{[%clk 0:00:09.1]} 109... Kg2 {[%clk 0:00:08.5]} 110. Qe2+ {[%clk 0:00:09.3]}
110... Kg1 {[%clk 0:00:08.5]} 111. Qe3+ {[%clk 0:00:09.5]} 111... Kg2 {[%clk
0:00:05.3]} 112. Qxh3+ {[%clk 0:00:08.5]} 112... Kxh3 {[%clk 0:00:05.9]} 1/2-1/2

[Event "Late-Titled-Tuesday-Blitz-June-04-2024"]
[Site "Chess.com"]
[Date "2024.06.04"]
[Round "11"]
[White "harshu27"]
[Black "Heliosis11"]
[Result "0-1"]
[WhiteElo "2522"]
[BlackElo "2419"]
[TimeControl "180+1"]
[EndTime "16:00:56 PDT"]
[Termination "Heliosis11 won by resignation"]

1. d4 {[%clk 0:03:00.9]} 1... Nf6 {[%clk 0:02:59.7]} 2. Nc3 {[%clk 0:03:00.8]}
2... d5 {[%clk 0:02:59.3]} 3. Bf4 {[%clk 0:03:00.5]} 3... Bf5 {[%clk 0:02:55]}
4. e3 {[%clk 0:02:58]} 4... e6 {[%clk 0:02:54.1]} 5. Nf3 {[%clk 0:02:58.1]} 5...
h6 {[%clk 0:02:52.2]} 6. Ne5 {[%clk 0:02:57.6]} 6... c6 {[%clk 0:02:44.9]} 7. g4
{[%clk 0:02:55.4]} 7... Bh7 {[%clk 0:02:44.9]} 8. Bd3 {[%clk 0:02:55.2]} 8...
Bxd3 {[%clk 0:02:42.5]} 9. Qxd3 {[%clk 0:02:56.1]} 9... Nbd7 {[%clk 0:02:42.5]}
10. O-O-O {[%clk 0:02:55.6]} 10... Nxe5 {[%clk 0:02:36.9]} 11. dxe5 {[%clk
0:02:53.4]} 11... Nd7 {[%clk 0:02:34.4]} 12. h4 {[%clk 0:02:49]} 12... b5 {[%clk
0:02:30.4]} 13. g5 {[%clk 0:02:44.1]} 13... b4 {[%clk 0:02:26.1]} 14. Ne2 {[%clk
0:02:34.9]} 14... Nc5 {[%clk 0:02:25.8]} 15. Qd4 {[%clk 0:02:34.6]} 15... Qa5
{[%clk 0:02:21.4]} 16. Kb1 {[%clk 0:02:34.1]} 16... Ne4 {[%clk 0:02:19.3]} 17.
Rhf1 {[%clk 0:02:21.6]} 17... c5 {[%clk 0:02:16.8]} 18. Qd3 {[%clk 0:02:21.2]}
18... c4 {[%clk 0:02:17.2]} 19. Qd4 {[%clk 0:02:17.4]} 19... Bc5 {[%clk
0:02:17]} 0-1